[Event "13th Palmanova Festival A 2024"]
[Site "Palmanova"]
[Date "2025.01.01"]
[Round "7.7"]
[White "Skrbec, Leon"]
[Black "Pegno, Mattia"]
[Result "1/2-1/2"]
[ECO "D36"]
[WhiteElo "2265"]
[BlackElo "2243"]
[Annotator "TA"]
[PlyCount "101"]
[EventDate "2024.12.27"]
[EventCountry "ITA"]
[SourceTitle "playchess.com"]
[Source "ChessBase"]
[SourceQuality "1"]
[TimeControl "6000+30"]

{[%evp 24,101,16,20,4,0,0,-5,0,0,6,-9,52,-1,-1,-1,-5,-10,0,-2,-5,-9,-3,-12,0,-8,11,18,17,15,33,0,53,0,0,0,0,-9,0,0,0,-9,0,16,88,-29,0,-12,0,0,0,-137,20,25,47,41,70,48,75,58,51,56,61,50,57,44,52,35,53,22,53,31,41,22,27,0,0,0,7,0]} 1. d4 {[%emt 0:01:30]} d5 {[%emt 0:00:54]} 2. c4 {[%emt 0:00:32]} e6 {[%emt 0:00:12]} 3. Nc3 {[%emt 0:00:34]} Nf6 {[%emt 0:00:22]} 4. cxd5 {[%emt 0:00:34]} exd5 {[%emt 0:00:10]} 5. Bg5 {[%emt 0:00:15]} Be7 {[%emt 0:00:08]} 6. e3 {[%emt 0:00:26]} c6 {[%emt 0:00:26]} 7. Bd3 {[%emt 0:00:25]} O-O {[%emt 0:00:10]} 8. Qc2 {[%emt 0:01:39]} Nbd7 {[%emt 0:00:07][%cal Bb8d7,Bd7f8,Bf8e6][%mdl 32]} 9. Nf3 {[%emt 0:01:10]} Re8 {[%emt 0:00:08]} 10. h3 {[%emt 0:03:34]} Nf8 {[%emt 0:01:18]} 11. O-O {[%emt 0:04:17]} g6 {[%emt 0:01:02]} 12. Bf4 {[%emt 0:00:21]} Ne6 {[%emt 0:00:54]} 13. Bh2 {[%emt 0:00:35]} Ng7 {[%emt 0:16:20]} 14. Ne5 {[%emt 0:02:49]} Bf5 {[%emt 0:01:09]} 15. Rab1 {[%emt 0:02:31]} a5 {[%emt 0:05:49]} 16. a3 {[%emt 0:06:45]} Bd6 {[%emt 0:22:15]} 17. Kh1 {[%emt 0:15:20]} Qe7 {[%emt 0:18:36]} (17... Bxd3 $11 18. Qxd3 Re6) 18. Rfc1 {[%emt 0:05:26]} ({White should try} 18. Bxf5 $1 $14 Nxf5 19. Rbe1) 18... Bxd3 {[%emt 0:07:05]} 19. Qxd3 {[%emt 0:00:22]} Nf5 {[%emt 0:01:08]} 20. Rc2 {[%emt 0:05:17]} Nd7 {[%emt 0:06:42]} 21. Nxd7 {[%emt 0:00:16]} Qxd7 {[%emt 0:00:03]} 22. Na4 {[%emt 0:02:26]} Bxh2 {[%emt 0:04:03]} 23. Kxh2 {[%emt 0:00:25]} Re7 {[%emt 0:04:22]} 24. Kg1 {[%emt 0:01:44] Nb6 would now be deadly.} Rae8 {[%emt 0:01:12]} 25. Qd2 {[%emt 0:00:44]} Nh4 {[%emt 0:03:03]} 26. Nc5 {[%emt 0:15:05]} Qf5 {[%emt 0:01:11]} 27. Qd1 {[%emt 0:00:45]} h5 {[%emt 0:02:01]} (27... b6 $11 28. Nd3 c5) 28. Rbc1 {[%emt 0:01:27]} (28. b4 $1 $14) 28... Qg5 $11 {[%emt 0:06:16][%csl Gh4][%cal Rg5g2]} 29. Qf1 $1 {[%emt 0:00:12]} Nf5 $40 {[%emt 0:01:43][%mdl 128] Black mounts an attack.} 30. Rc3 {[%emt 0:03:31]} Qf6 {[%emt 0:03:47]} 31. Qd1 {[%emt 0:01:21]} Kh7 {[%emt 0:02:13]} 32. Qf3 {[%emt 0:02:14]} Qd6 {[%emt 0:00:26][%cal Of5d4]} 33. Nd3 {[%emt 0:00:34]} Kg7 {[%emt 0:00:52] [#]} (33... Nh4 $11 {remains equal.} 34. Qf4 Qxf4 35. Nxf4 a4) 34. Qf4 {[%emt 0:00:56]} (34. b4 $1 $16) 34... Qd8 {[%emt 0:00:24]} 35. Nc5 {[%emt 0:06:21][%cal Bd3c5,Bc5b3,Bb3d2,Bd2f3,Bf3g5][%mdl 32]} b6 {[%emt 0:00:21]} 36. Nb3 $1 {[%emt 0:00:25][%cal Ob3d2]} Re4 {[%emt 0:00:50]} 37. Qh2 {[%emt 0:01:08] [#]} (37. Qf3 $11) 37... Qg5 $2 {[%emt 0:00:25]} ({Black should try} 37... c5 $1 $17 {[%cal Rc5d4]} 38. Nd2 R4e6) 38. Nd2 $1 {[%emt 0:00:58]} (38. Rxc6 $2 {loses.} Rxe3 (38... Nxe3 $2 39. fxe3 Rxe3 40. R6c3 $19) 39. fxe3 Qxe3+ 40. Kf1 Ng3+ $19 (40... Qxb3 $2 41. Qf4 $19)) 38... R4e6 {[%emt 0:00:46] and ...Nxd4 would now be decisive} 39. Nf3 $1 {[%emt 0:25:06]} Qf6 {[%emt 0:00:29][%cal Oc6c5]} 40. Qf4 {[%emt 0:00:00]} (40. Qc7 {seems wilder.} c5 41. dxc5 d4 42. exd4 Nxd4 43. Nxd4 Qxd4 44. cxb6 Rxb6 45. b3) 40... Rc8 {[%emt 0:00:34]} 41. Qg5 {[%emt 0:00:00]} Qxg5 {[%emt 0:00:00]} 42. Nxg5 {[%emt 0:00:00]} Rd6 {[%emt 0:00:00]} 43. Nf3 {[%emt 0:00:00]} f6 {[%emt 0:00:00]} 44. Ne1 {[%emt 0:00:00]} Ne7 {[%emt 0:00:00]} 45. Nd3 {[%emt 0:00:00]} Kf7 {[%emt 0:00:00]} 46. b3 {[%emt 0:00:00]} Ke6 {[%emt 0:00:00]} 47. Kf1 {[%emt 0:00:00]} Rd7 {[%emt 0:00:00]} 48. Ke2 {[%emt 0:00:00]} Kd6 {[%emt 0:00:00]} 49. Kf3 {[%emt 0:00:00]} Rdc7 {[%emt 0:00:00]} 50. b4 {[%emt 0:00:00]} Ra8 {[%emt 0:00:00]} 51. Rb1 {[%emt 0:00:00]} 1/2-1/2

[Event "13th Palmanova Festival A 2024"]
[Site "Palmanova"]
[Date "2025.01.01"]
[Round "7.8"]
[White "Casadio, Niccolo`"]
[Black "Stankovic, Milos"]
[Result "1/2-1/2"]
[ECO "C24"]
[WhiteElo "2275"]
[BlackElo "2462"]
[Annotator "TA"]
[PlyCount "50"]
[EventDate "2024.12.27"]
[EventCountry "ITA"]
[SourceTitle "playchess.com"]
[Source "ChessBase"]
[SourceQuality "1"]
[TimeControl "6000+30"]

{[%evp 11,50,47,49,31,40,31,32,30,28,21,30,27,45,12,7,0,0,0,0,17,34,33,35,35,38,39,36,35,60,36,32,36,26,19,28,0,14,7,13,13,17]} 1. e4 {[%emt 0:08:07]} e5 {[%emt 0:01:10]} 2. Nf3 {[%emt 0:00:07]} Nc6 {[%emt 0:00:30]} 3. Bc4 {[%emt 0:00:07]} Nf6 {[%emt 0:00:31][%cal Bg8f6,Bf6d5,Bd5b6][%mdl 32]} 4. d3 {[%emt 0:00:07]} d5 {[%emt 0:00:30]} 5. exd5 {[%emt 0:03:03]} Nxd5 {[%emt 0:06:32]} 6. O-O {[%emt 0:02:43]} Nb6 {[%emt 0:02:28]} 7. Bb5 {[%emt 0:04:07]} Bd6 {[%emt 0:00:30]} 8. Re1 {[%emt 0:01:22]} f6 {[%emt 0:04:56]} 9. a4 {[%emt 0:03:38] White is slightly better.} a5 {[%emt 0:01:01]} 10. Be3 {[%emt 0:08:22]} O-O {[%emt 0:05:31][%cal Oc6d4]} 11. Nbd2 {[%emt 0:01:05]} Kh8 {[%emt 0:05:28]} 12. h3 {[%emt 0:11:40]} Nd5 {[%emt 0:07:32]} 13. Ne4 {[%emt 0:03:45]} Nxe3 {[%emt 0:11:40]} 14. Rxe3 {[%emt 0:01:12]} Ne7 {[%emt 0:03:23][%cal Bc6e7,Be7f5,Bf5d6][%mdl 32]} 15. d4 {[%emt 0:09:57]} Nf5 {[%emt 0:22:03]} 16. Rd3 {[%emt 0:04:43] dxe5 is the strong threat.} Qe7 {[%emt 0:00:18]} 17. dxe5 {[%emt 0:01:07]} Bxe5 {[%emt 0:04:40]} 18. Nxe5 {[%emt 0:00:48]} Qxe5 {[%emt 0:00:10]} 19. Nc3 {[%emt 0:01:25]} Nd6 {[%emt 0:02:35]} 20. Re3 {[%emt 0:02:38]} Qc5 {[%emt 0:00:29]} 21. Bd3 {[%emt 0:01:45]} Bf5 {[%emt 0:01:11]} 22. Qh5 {[%emt 0:01:37]} g6 {[%emt 0:04:07]} 23. Qh4 {[%emt 0:00:55]} Bxd3 {[%emt 0:01:14] The position is equal.} 24. Rxd3 {[%emt 0:00:05]} Rae8 {[%emt 0:00:57]} 25. Rad1 {[%emt 0:02:15]} Rf7 {[%emt 0:04:22] Weighted Error Value: White=0.08 (flawless) /Black=0.04 (flawless) .  Inaccurate:     	White=2     	---        OK:         	White=7     	Black=11     Best:        	---       	Black=1} 1/2-1/2

[Event "13th Palmanova Festival A 2024"]
[Site "Palmanova"]
[Date "2025.01.01"]
[Round "7.9"]
[White "Zoncu, Roberto Alessio"]
[Black "Gkoumas, Georgios"]
[Result "1/2-1/2"]
[ECO "B22"]
[WhiteElo "2165"]
[BlackElo "2449"]
[Annotator "TA"]
[PlyCount "72"]
[EventDate "2024.12.27"]
[EventCountry "ITA"]
[SourceTitle "playchess.com"]
[Source "ChessBase"]
[SourceQuality "1"]
[TimeControl "6000+30"]

{[%evp 12,72,12,18,16,20,13,22,14,14,31,19,11,11,14,5,31,0,0,0,0,-2,-2,0,0,0,0,-6,-8,-6,-3,-12,-10,-10,-8,-8,-10,-14,-11,-9,-10,-10,0,-8,0,0,0,0,0,0,0,0,0,0,0,0,0,0,0,0,0,0,0]} 1. e4 {[%emt 0:01:10][%cal Be2e4,Be4e5][%mdl 32]} c5 {[%emt 0:04:04]} 2. c3 {[%emt 0:02:26]} Nf6 {[%emt 0:00:07]} 3. e5 {[%emt 0:00:05]} Nd5 {[%emt 0:00:04]} 4. d4 {[%emt 0:00:07]} cxd4 {[%emt 0:00:26]} 5. Nf3 {[%emt 0:00:13]} d6 {[%emt 0:00:25]} 6. exd6 {[%emt 0:08:23]} Qxd6 {[%emt 0:01:16]} 7. Nxd4 {[%emt 0:00:40]} Nc6 {[%emt 0:02:48]} 8. Be2 {[%emt 0:09:27]} Nxd4 {[%emt 0:06:44]} 9. Qxd4 {[%emt 0:00:26]} Bd7 {[%emt 0:19:56]} 10. c4 {[%emt 0:23:02]} Nb4 {[%emt 0:00:57]} 11. Qxd6 {[%emt 0:00:07]} exd6 {[%emt 0:00:05]} 12. Na3 {[%emt 0:00:06] Inhibits Nc2+.} Be7 {[%emt 0:00:31]} 13. Bd2 {[%emt 0:01:53][%cal Bc1d2,Bd2c3,Bc3d4,Bd4b6][%mdl 32]} a5 {[%emt 0:02:18]} 14. Bc3 {[%emt 0:02:08][%cal Oe1g1]} O-O {[%emt 0:01:04] The position is equal.} 15. O-O {[%emt 0:01:16]} d5 {[%emt 0:06:27]} 16. cxd5 {[%emt 0:16:12]} Nxd5 {[%emt 0:00:33]} 17. Bd4 {[%emt 0:02:12]} Rfd8 {[%emt 0:09:30]} 18. Bf3 {[%emt 0:10:04]} Bc6 {[%emt 0:01:31]} 19. Rfd1 {[%emt 0:15:10]} Nb4 {[%emt 0:05:54]} 20. Bxc6 {[%emt 0:00:56]} bxc6 {[%emt 0:00:25]} 21. Bb6 {[%emt 0:05:37]} Rxd1+ {[%emt 0:24:48]} 22. Rxd1 {[%emt 0:00:08]} a4 {[%emt 0:00:05]} 23. Nc4 {[%emt 0:03:24]} Nxa2 {[%emt 0:01:07]} 24. Ra1 {[%emt 0:02:07]} Nb4 {[%emt 0:00:11]} 25. b3 {[%emt 0:01:15] [#]} a3 $1 {[%emt 0:00:48]} 26. Rxa3 {[%emt 0:00:17]} Re8 {[%emt 0:03:49]} 27. Ra1 {[%emt 0:00:30]} Bf6 {[%emt 0:01:29]} 28. Rd1 {[%emt 0:00:19]} h5 {[%emt 0:00:11]} 29. Kf1 {[%emt 0:01:16]} Nd5 {[%emt 0:00:13]} 30. Bd4 {[%emt 0:02:00]} Nc3 {[%emt 0:03:43]} 31. Bxc3 {[%emt 0:00:12]} Bxc3 $11 {[%emt 0:00:06] KRB-KRN} 32. Rc1 {[%emt 0:00:05]} Bb4 {[%emt 0:00:31]} 33. Ne3 {[%emt 0:00:30]} Re6 {[%emt 0:01:52]} 34. Rc4 {[%emt 0:00:23]} Ba5 {[%emt 0:00:58]} 35. Rc5 {[%emt 0:00:58]} Bb6 {[%emt 0:00:13]} 36. Rxh5 {[%emt 0:00:56]} Bxe3 {[%emt 0:00:04] A rather calm draw.   Weighted Error Value: White=0.02 (flawless) /Black=0.02 (flawless) .  Inaccurate:     	White=1     	Black=1      OK:         	White=17    	Black=15     Best:        	White=1     	Black=1} 1/2-1/2

[Event "13th Palmanova Festival A 2024"]
[Site "Palmanova"]
[Date "2025.01.01"]
[Round "7.10"]
[White "Hovhannisyan, Mher"]
[Black "Solomon, Kenny"]
[Result "1-0"]
[ECO "D78"]
[WhiteElo "2397"]
[BlackElo "2277"]
[Annotator "TA"]
[PlyCount "59"]
[EventDate "2024.12.27"]
[EventCountry "ITA"]
[SourceTitle "playchess.com"]
[Source "ChessBase"]
[SourceQuality "1"]
[TimeControl "6000+30"]

{[%evp 13,59,2,6,8,16,5,42,38,19,20,39,-6,30,31,12,7,0,0,18,27,21,29,25,19,39,41,42,35,36,16,22,13,34,21,103,85,112,88,212,213,220,173,446,444,735,706,738,701]} 1. Nf3 {[%emt 0:01:28]} d5 {[%emt 0:08:33]} 2. g3 {[%emt 0:00:42]} g6 {[%emt 0:00:12]} 3. Bg2 {[%emt 0:00:30]} Bg7 {[%emt 0:00:06]} 4. d4 {[%emt 0:00:08]} Nf6 {[%emt 0:00:14]} 5. O-O {[%emt 0:00:04]} O-O {[%emt 0:00:05]} 6. c4 {[%emt 0:00:02]} c6 {[%emt 0:00:06]} 7. Ne5 {[%emt 0:00:23]} Be6 {[%emt 0:07:08]} 8. cxd5 {[%emt 0:01:09]} Bxd5 {[%emt 0:00:31]} 9. Bh3 {[%emt 0:07:16]} c5 {[%emt 0:25:09]} 10. dxc5 {[%emt 0:03:57]} Ne4 {[%emt 0:00:51] Inhibits Nc3.} 11. Nd3 $1 {[%emt 0:07:27]} Na6 {[%emt 0:01:15]} 12. Qc2 {[%emt 0:14:40]} Qa5 {[%emt 0:09:41][%csl LRa2,LRc5][%cal Ra6c5]} 13. Be3 {[%emt 0:09:35]} Nb4 {[%emt 0:05:32]} 14. Nxb4 {[%emt 0:07:13]} Qxb4 {[%emt 0:01:04]} 15. Nc3 {[%emt 0:26:19]} Nxc3 {[%emt 0:02:14]} 16. bxc3 {[%emt 0:00:09]} Qxc3 {[%emt 0:10:21]} 17. Qxc3 {[%emt 0:00:17]} Bxc3 {[%emt 0:00:03]} 18. Rac1 {[%emt 0:00:58]} Bg7 {[%emt 0:09:57]} 19. Bg2 {[%emt 0:00:24]} Bxg2 {[%emt 0:00:20]} 20. Kxg2 {[%emt 0:00:01]} Rfc8 {[%emt 0:00:47]} 21. Rfd1 {[%emt 0:03:53]} Rc7 {[%emt 0:00:01] Prevents Rd7} 22. Rd3 {[%emt 0:04:35]} f5 {[%emt 0:05:16]} 23. a4 {[%emt 0:07:54][%cal Ba2a4,Ba4a5][%mdl 32]} Rac8 {[%emt 0:10:59]} (23... Bf8 $11) 24. Rb1 $16 {[%emt 0:03:19]} e5 {[%emt 0:02:45] [#]} 25. Rdb3 $1 {[%emt 0:01:25] White is more active.} Rb8 {[%emt 0:00:49] [#]} (25... f4 $16 26. gxf4 exf4 27. Bxf4 Rxc5) 26. a5 $1 $18 {[%emt 0:00:48]} a6 {[%emt 0:00:18]} 27. Rb6 {[%emt 0:00:25][%cal Oc5c6] Threatens to win with c6!.} Bf8 $2 {[%emt 0:00:26]} (27... Rbc8 {might work better.} 28. Rxb7 f4) 28. c6 {[%emt 0:00:26][%cal Bc5c6,Bc6b7][%mdl 32]} Rbc8 {[%emt 0:02:24]} (28... g5 $142 29. f3 (29. Rxb7 Rbc8 $18) (29. cxb7 f4 $18) (29. Bxg5 Bc5 $18) 29... f4) 29. cxb7 {[%emt 0:00:15]} ({Less strong is} 29. Rxb7 Rxc6 30. R1b6 Rc2 31. Rxa6 Rxe2 $18) 29... Rb8 {[%emt 0:00:01]} 30. R6b3 {[%emt 0:00:25]} 1-0

[Event "13th Palmanova Festival A 2024"]
[Site "Palmanova"]
[Date "2025.01.01"]
[Round "7.11"]
[White "Rossi, Gabriele Valerio"]
[Black "Domalchuk-Jonasson, Aleksandr"]
[Result "0-1"]
[ECO "D30"]
[WhiteElo "2007"]
[BlackElo "2377"]
[Annotator "TA"]
[PlyCount "70"]
[EventDate "2024.12.27"]
[EventCountry "ITA"]
[SourceTitle "playchess.com"]
[Source "ChessBase"]
[SourceQuality "1"]
[TimeControl "6000+30"]

{[%evp 9,70,0,9,0,0,0,-1,-14,-25,-30,-28,-33,-17,-45,-31,-52,-44,-93,-78,-89,-88,-104,-92,-158,-93,-103,-82,-129,-93,-144,-149,-161,-102,-119,-118,-129,-67,-57,-68,-148,-135,-259,-267,-313,-298,-348,-350,-402,-400,-642,-358,-398,-225,-222,-227,-233,-222,-486,-474,-485,-485,-418,-410]} 1. d4 {[%emt 0:00:00]} d5 {[%emt 0:05:08]} 2. c4 {[%emt 0:00:02]} e6 {[%emt 0:00:07]} 3. g3 {[%emt 0:00:02]} dxc4 {[%emt 0:00:44]} 4. Bg2 {[%emt 0:00:10]} a6 {[%emt 0:00:28]} 5. Nf3 {[%emt 0:00:33]} b5 {[%emt 0:00:17]} 6. Ne5 {[%emt 0:04:47]} c6 {[%emt 0:00:12]} 7. O-O {[%emt 0:03:39][%cal Ob2b3]} Bb7 {[%emt 0:00:12]} 8. Nc3 {[%emt 0:21:00]} Nf6 {[%emt 0:05:38]} 9. e4 {[%emt 0:01:22]} Nbd7 {[%emt 0:06:29]} 10. Nxd7 {[%emt 0:18:50]} Qxd7 {[%emt 0:00:47]} 11. Be3 {[%emt 0:03:20]} Be7 {[%emt 0:01:15][%cal Oc6c5]} 12. Qe2 {[%emt 0:01:59]} O-O {[%emt 0:03:05]} 13. Rad1 {[%emt 0:02:43]} (13. b3 $15) 13... Qc7 {[%emt 0:17:08]} 14. e5 {[%emt 0:09:48]} Nd5 {[%emt 0:05:13]} 15. Ne4 {[%emt 0:02:25]} c5 {[%emt 0:02:32]} 16. Qh5 {[%emt 0:07:09]} (16. Nxc5 Bxc5 17. dxc5) 16... cxd4 {[%emt 0:15:44]} (16... Rad8 $142 17. a3 Nxe3 18. fxe3 a5 19. Nf6+ gxf6 20. exf6 Bxf6 21. Rxf6 Bxg2 22. Kxg2 Rd5) 17. Bxd4 $17 {[%emt 0:02:15]} Rad8 {[%emt 0:00:12]} 18. f4 {[%emt 0:02:46]} (18. a3 $142) 18... Kh8 {[%emt 0:12:47]} 19. Ng5 {[%emt 0:08:26]} (19. f5 exf5 20. Nd6 Bxd6 21. exd6 Qxd6 (21... Rxd6 22. Rxf5 Nf6 23. Rxf6 $11) 22. Bxd5 Bxd5 23. Rxf5) 19... Bxg5 {[%emt 0:00:13]} 20. fxg5 {[%emt 0:00:04]} Ne7 {[%emt 0:02:34]} (20... Kg8 $19 21. Be4 g6) 21. Bxb7 {[%emt 0:03:10]} Qxb7 {[%emt 0:00:19]} 22. Bc5 {[%emt 0:02:53] [#] And now Rxd8 would win.} Rxd1 {[%emt 0:10:07]} (22... g6 $1 $17 {[%cal Rg6h5]} 23. Qe2 Nd5) 23. Qxd1 $15 {[%emt 0:00:05]} Kg8 {[%emt 0:00:09]} 24. Qh5 {[%emt 0:00:25]} ({White should try} 24. Qf3 $15 Qxf3 25. Rxf3) 24... g6 $36 {[%emt 0:02:27][%mdl 2048] White is under strong pressure.} 25. Qe2 {[%emt 0:06:12]} (25. Qf3 $17 Qxf3 26. Rxf3) 25... Rc8 $19 {[%emt 0:03:00]} 26. Qf2 {[%emt 0:00:44]} Nd5 {[%emt 0:00:44]} 27. h4 {[%emt 0:01:24]} b4 {[%emt 0:01:40]} 28. g4 {[%emt 0:00:00]} c3 {[%emt 0:00:03]} 29. h5 {[%emt 0:00:28]} (29. bxc3 $142 bxc3 30. h5) 29... c2 {[%emt 0:02:49] ...Qc7 is the strong threat.} 30. Rc1 {[%emt 0:02:29]} Qc7 {[%emt 0:05:20]} (30... Qb5 $142 31. Rxc2 Qd3) 31. Rxc2 {[%emt 0:00:37]} gxh5 {[%emt 0:02:16]} ({But not} 31... Qxe5 32. Bd6 Rxc2 (32... Qxd6 $2 33. Rxc8+ $18) 33. Bxe5 $17) 32. gxh5 {[%emt 0:00:33][%cal Og5g6]} Qxe5 {[%emt 0:00:07]} 33. Qh4 $2 {[%emt 0:02:32]} (33. Bd6 Qxg5+ (33... Qxd6 $2 34. Rxc8+ Kg7 35. Qd4+ f6 36. Kh1 $18) 34. Qg2 Qxg2+ (34... Rxc2 35. Qxg5+ Kh8 36. Qd8+ Kg7 37. Bf8+ Kh8 38. Bh6#) 35. Rxg2+ Kh8 36. h6) 33... Nf4 {[%emt 0:02:12]} 34. Rc4 {[%emt 0:01:37]} Rxc5 {[%emt 0:01:33]} 35. Rxf4 {[%emt 0:00:31]} Qe3+ {[%emt 0:00:55]} (35... Qxg5+ $2 {loses.} 36. Rg4 h6 (36... Rc1+ $2 37. Kg2 $18) 37. Rxg5+ Rxg5+ 38. Kh1 $18) (35... Qxb2 36. g6 Qc1+ (36... fxg6 37. Qd8+ Kg7 38. Qf8#) 37. Kg2 Qd2+ (37... fxg6 38. Qd8+ Kg7 39. Qf8#) 38. Rf2 Qg5+ 39. Qg3 $19) 0-1

[Event "13th Palmanova Festival A 2024"]
[Site "Palmanova"]
[Date "2025.01.01"]
[Round "7.12"]
[White "Skawinski, Arkadiusz"]
[Black "Bouska, Jiri"]
[Result "1/2-1/2"]
[ECO "C00"]
[WhiteElo "2330"]
[BlackElo "2267"]
[Annotator "RC"]
[PlyCount "118"]
[EventDate "2024.12.27"]
[EventCountry "ITA"]
[SourceTitle "playchess.com"]
[Source "ChessBase"]
[SourceQuality "1"]
[TimeControl "6000+30"]

1. Nf3 {[%emt 0:00:18]} d5 {[%emt 0:02:35]} 2. g3 {[%emt 0:00:02]} Nf6 {[%emt 0:00:18]} 3. Bg2 {[%emt 0:00:05]} e6 {[%emt 0:00:07]} 4. O-O {[%emt 0:00:17]} Be7 {[%emt 0:00:05]} 5. d3 {[%emt 0:00:04]} c5 {[%emt 0:00:05]} 6. Nbd2 {[%emt 0:00:03]} Nc6 {[%emt 0:00:18]} 7. e4 {[%emt 0:00:39]} b5 {[%emt 0:01:33]} 8. exd5 {[%emt 0:02:10]} exd5 {[%emt 0:00:19]} 9. d4 {[%emt 0:00:47]} O-O {[%emt 0:21:39]} 10. dxc5 {[%emt 0:01:45]} Bxc5 {[%emt 0:00:34]} 11. Nb3 {[%emt 0:00:03]} Bb6 {[%emt 0:00:12]} 12. Nbd4 {[%emt 0:07:09]} Nxd4 {[%emt 0:00:20]} 13. Nxd4 {[%emt 0:00:04]} Bg4 {[%emt 0:00:50]} 14. Qd3 {[%emt 0:01:49]} b4 {[%emt 0:09:59]} 15. a3 {[%emt 0:14:23]} bxa3 {[%emt 0:08:12]} 16. Rxa3 {[%emt 0:00:16]} Re8 {[%emt 0:02:50]} 17. c3 {[%emt 0:06:15]} Qd7 {[%emt 0:10:22]} 18. Be3 {[%emt 0:13:18]} Rab8 {[%emt 0:05:48]} 19. Rfa1 {[%emt 0:03:07]} h6 {[%emt 0:06:16]} 20. Nc2 {[%emt 0:24:03]} Bf5 {[%emt 0:01:44]} 21. Qd2 {[%emt 0:00:14]} Bxc2 {[%emt 0:05:04]} 22. Bxb6 {[%emt 0:00:07]} Rxb6 {[%emt 0:06:20]} 23. Qxc2 {[%emt 0:00:05]} Re7 {[%emt 0:12:02]} 24. Rb3 {[%emt 0:02:56]} Rxb3 {[%emt 0:01:03]} 25. Qxb3 {[%emt 0:00:06]} Qf5 {[%emt 0:01:11]} 26. Qd1 {[%emt 0:01:34]} Ne4 {[%emt 0:02:04]} 27. Qf3 {[%emt 0:03:23]} Qxf3 {[%emt 0:03:09]} 28. Bxf3 {[%emt 0:00:06]} Nf6 {[%emt 0:00:23]} 29. Kf1 {[%emt 0:00:48]} Kf8 {[%emt 0:00:57]} 30. Ra5 {[%emt 0:01:21]} Rb7 {[%emt 0:02:52]} 31. Ra2 {[%emt 0:03:32]} Re7 {[%emt 0:00:30]} 32. Be2 {[%emt 0:10:20]} Rb7 {[%emt 0:01:05]} 33. Ke1 {[%emt 0:00:42]} Ne4 {[%emt 0:01:00]} 34. f3 {[%emt 0:00:47]} Nc5 {[%emt 0:00:23]} 35. Kd2 {[%emt 0:00:36]} Ke7 {[%emt 0:00:47]} 36. b4 {[%emt 0:01:26]} Ne6 {[%emt 0:00:16]} 37. Ke3 {[%emt 0:02:32]} Rc7 {[%emt 0:00:37]} 38. Kd3 {[%emt 0:00:44]} g5 {[%emt 0:00:10]} 39. Ra5 {[%emt 0:01:17]} Kd6 {[%emt 0:01:07]} 40. Bd1 {[%emt 0:00:13]} Rb7 {[%emt 0:02:24]} 41. Bb3 {[%emt 0:06:09]} Nc7 {[%emt 0:00:40]} 42. Ra1 {[%emt 0:00:00]} f6 {[%emt 0:00:00]} 43. Ra5 {[%emt 0:00:00]} a6 {[%emt 0:00:00]} 44. Ra4 {[%emt 0:00:00]} Rb6 {[%emt 0:00:00]} 45. Ra1 {[%emt 0:00:00]} Rb8 {[%emt 0:00:00]} 46. Ra2 {[%emt 0:00:00]} Ke5 {[%emt 0:00:00]} 47. Re2+ {[%emt 0:00:00]} Kd6 {[%emt 0:00:00]} 48. Ra2 {[%emt 0:00:00]} f5 {[%emt 0:00:00]} 49. f4 {[%emt 0:00:00]} Rb6 {[%emt 0:00:00]} 50. Ra5 {[%emt 0:00:00]} Rb8 {[%emt 0:00:00]} 51. Ra2 {[%emt 0:00:00]} Rb6 {[%emt 0:00:00]} 52. fxg5 {[%emt 0:05:17]} hxg5 {[%emt 0:00:00]} 53. h4 {[%emt 0:00:07]} gxh4 {[%emt 0:00:00]} 54. gxh4 {[%emt 0:00:02]} Ne6 {[%emt 0:00:00]} 55. Ra5 {[%emt 0:00:33]} Nc7 {[%emt 0:00:00]} 56. Kd4 {[%emt 0:02:33]} Nb5+ {[%emt 0:00:00]} 57. Kd3 {[%emt 0:00:13]} Nc7 {[%emt 0:00:00]} 58. Kd4 {[%emt 0:01:46]} Nb5+ {[%emt 0:00:00]} 59. Kd3 {[%emt 0:00:04]} Nc7 {[%emt 0:00:00]} 1/2-1/2